bitfinex-derivatives/quotes_ETHF0:USTF0_20240905
["timestamp","ask_amount","ask_price","bid_price","bid_amount"]
[1725544762398,0.42218934,2404.3,2404.1,0.41597]
[1725544762591,0.42218934,2404.3,2404.1,0.41596]
[1725544762994,3.2078,2404.2,2404.1,0.41596]
[1725544763190,0.42218934,2404.3,2404.1,0.41596]
[1725544764492,0.00623934,2404.3,2403.9,0.41601]
[1725544764688,0.41598,2404.1,2403.9,0.41601]
[1725544764893,0.41598,2404.1,2403.9,0.41599]
[1725544765298,0.41597,2404.2,2404.0,0.41599]
[1725544765496,0.41595,2404.2,2404.0,0.41599]
[1725544765698,0.41597,2404.1,2404.0,0.41599]
[1725544765894,0.41597,2404.1,2403.9,0.41599]
[1725544766095,0.41599,2404.0,2403.8,0.63233757]
[1725544766496,1.04610934,2404.3,2403.9,0.41601]
[1725544766497,0.41598,2404.1,2403.9,0.41601]
[1725544766691,0.41599,2404.0,2403.9,0.41601]
[1725544766906,0.41598,2404.1,2403.8,0.21632757]
[1725544767201,0.41598,2404.1,2403.9,0.416]
[1725544767792,0.41599,2404.0,2403.8,0.63233757]
[1725544767987,1.0399,2404.2,2403.8,0.21632757]
[1725544768194,0.41598,2404.1,2403.9,0.41601]
[1725544768398,0.41599,2404.0,2403.9,0.41601]
[1725544768901,0.41601,2403.9,2403.8,0.00623934]
[1725544769396,10.16,2403.9,2403.0,4.104]
[1725544769604,0.41621,2402.7,2402.6,4.104]
[1725544769804,0.41622,2402.7,2402.4,2.34046]
[1725544770110,0.41623,2402.7,2402.4,2.34046]
[1725544770295,0.41621,2402.7,2402.4,2.34046]
[1725544770498,3.2078,2402.6,2402.3,2.03343934]
[1725544770801,3.62404,2402.6,2402.3,0.42250934]
[1725544771094,0.41626,2402.5,2402.3,0.00623934]
[1725544771298,3.62404,2402.6,2402.3,0.42251934]
[1725544771501,0.41624,2402.6,2402.3,0.42251934]
[1725544771905,0.41627,2402.4,2402.3,0.00623934]
[1725544772097,3.62407,2402.4,2402.3,0.00623934]
[1725544772696,4.66474,2402.4,2402.3,0.00623934]
[1725544772905,3.62407,2402.4,2402.3,0.00623934]
[1725544773205,4.66474,2402.4,2402.3,0.00623934]
[1725544773705,3.62407,2402.4,2402.3,0.00623934]
[1725544774602,4.27341116,2402.8,2402.3,0.00623934]
[1725544774603,3.62402,2402.7,2402.3,0.00623934]
[1725544774805,3.2078,2402.7,2402.3,0.00623934]
[1725544775012,0.41626,2402.5,2402.3,0.00623934]
[1725544775306,3.2078,2402.7,2402.3,0.00623934]
[1725544775307,3.62407,2402.4,2402.3,0.00623934]
[1725544775512,3.2078,2402.4,2402.3,0.00623934]
[1725544775809,0.41628,2402.3,2402.1,42.24919]
[1725544775992,3.8047,2402.3,2402.1,42.24919]
[1725544776196,0.4163,2402.2,2402.1,42.24919]
[1725544776395,11.70806,2402.2,2402.1,42.24919]
[1725544777308,18.74882,2402.2,2402.1,32.17888142]
[1725544778001,15.86882,2402.2,2402.1,32.17888142]
[1725544778395,15.86882,2402.2,2402.1,21.70037142]
[1725544778597,15.86882,2402.2,2400.6,4.104]
[1725544778598,2.0817,2402.0,2400.6,4.104]
[1725544778799,4.88128,2401.0,2400.3,2.0133]
[1725544779000,0.41659,2400.6,2400.3,2.0133]
[1725544779601,0.41657,2400.7,2400.3,2.42993]
[1725544779809,0.00623934,2400.7,2400.3,2.0133]
[1725544780003,3.21403934,2400.7,2400.5,0.41659]
[1725544780201,3.21403934,2400.7,2400.4,0.41661]
[1725544780604,3.21403934,2400.7,2400.4,0.4166]
[1725544782703,0.00623934,2400.7,2400.3,2.0133]
[1725544782907,0.00623934,2400.7,2400.5,0.41658]
[1725544783115,0.00623934,2400.7,2400.3,2.0133]
[1725544783411,0.00623934,2400.7,2400.4,3.84]
[1725544783712,0.00623934,2400.7,2400.5,0.41659]
[1725544783912,0.00623934,2400.7,2400.6,0.41658]
[1725544784100,0.00623934,2400.7,2400.5,0.41659]
[1725544784505,0.00623934,2400.7,2400.4,3.84]
[1725544784813,0.00623934,2400.7,2400.5,0.41659]
[1725544785211,3.21403934,2400.7,2400.5,0.41659]
[1725544785412,0.00623934,2400.7,2400.4,0.4166]
[1725544785606,0.00623934,2400.7,2400.5,0.41659]
[1725544786006,0.00623934,2400.7,2400.5,4.25658]
[1725544786212,0.00623934,2400.7,2400.6,0.41658]
[1725544788507,0.00623934,2400.7,2400.5,4.25658]
[1725544788719,0.00623934,2400.7,2400.6,0.41658]
[1725544790916,3.2078,2401.9,2400.6,10.1656]
[1725544791109,0.4164,2401.7,2401.4,0.41643]
[1725544791310,0.4164,2401.7,2401.1,2.0055]
[1725544791311,3.2078,2401.5,2401.1,2.0055]
[1725544791520,10.0531854,2401.7,2400.7,1.9698]
[1725544791521,3.2078,2401.2,2400.7,1.9698]
[1725544791712,3.62433,2400.9,2400.7,1.9698]
[1725544791914,0.41653,2400.9,2400.7,1.9698]
[1725544792524,0.25650892,2402.0,2401.7,0.41638]
[1725544792816,0.25650892,2402.0,2400.8,7.7894]
[1725544792817,3.62416,2401.9,2401.2,4.25647]
[1725544793020,3.2078,2401.9,2401.4,0.41644]
[1725544793409,0.41632,2402.2,2401.5,4.25641]
[1725544793609,3.2078,2402.3,2401.5,3.84]
[1725544793610,0.41633,2402.1,2401.5,3.84]
[1725544793821,0.41633,2402.1,2401.6,0.00623934]
[1725544793822,0.42256934,2402.1,2401.6,0.00623934]
[1725544794019,0.00623934,2402.1,2401.6,0.00623934]
[1725544794523,3.2078,2402.0,2401.6,0.00623934]
[1725544795319,0.00623934,2402.1,2401.6,0.00623934]
[1725544795320,0.00623934,2402.1,2401.9,0.41635]
[1725544795510,0.00623934,2402.1,2402.0,1.9956]
[1725544797111,0.00623934,2402.1,2402.0,6.57514]
[1725544798924,3.2078,2402.6,2402.4,0.41626]
[1725544799115,0.20407865,2403.1,2402.4,0.41626]
[1725544799116,0.41617,2403.0,2402.4,0.41626]
[1725544799512,3.2078,2403.2,2402.6,3.84]
[1725544799815,3.2078,2403.2,2403.0,0.41616]
[1725544800214,0.00623934,2403.3,2402.9,3.84623934]
[1725544800423,3.41364999,2404.8,2403.2,7.0478]
[1725544800721,3.2078,2404.8,2404.4,0.41592]
[1725544801022,3.2078,2404.8,2404.3,0.41593]
[1725544801225,0.41585,2404.9,2404.4,0.41592]
[1725544801428,3.2078,2405.1,2404.5,3.84]
[1725544801725,3.2078,2405.2,2405.0,3.84]
[1725544801915,0.26031626,2405.2,2405.1,4.25579]
[1725544802111,4.24689,2406.1,2405.1,3.84]
[1725544802316,3.2078,2406.1,2405.2,3.84]
[1725544802525,3.2078,2405.8,2404.9,5.8323]
[1725544802826,3.62356,2405.4,2404.9,5.8323]
[1725544803011,3.2078,2405.4,2404.9,1.9923]
[1725544803208,3.2078,2405.4,2404.9,5.8323]
[1725544803422,3.2078,2405.4,2404.7,3.2078]
[1725544803423,0.41589,2404.7,2404.5,2.0797]
[1725544803612,0.4159,2404.5,2404.4,0.00623934]
[1725544804020,0.41595,2404.2,2404.1,1.9923]
[1725544804333,3.84,2405.1,2403.8,2.0168]
[1725544804334,0.41595,2404.3,2403.8,2.0168]
[1725544804522,3.2078,2404.7,2403.8,2.0168]
[1725544804723,3.2078,2404.7,2404.0,3.84]
[1725544805022,0.00623934,2404.6,2404.1,0.42219934]
[1725544805224,0.00623934,2404.6,2404.3,3.84]
[1725544805522,0.00623934,2404.6,2404.2,1.966]
[1725544805721,0.00623934,2404.6,2404.2,2.38194]
[1725544805915,0.00623934,2404.6,2404.2,1.966]
[1725544806121,3.2078,2404.4,2404.2,1.966]
[1725544806326,3.2078,2404.5,2404.4,0.41591]
[1725544806517,3.21403934,2404.6,2404.3,4.25593]
[1725544806819,0.00623934,2404.6,2404.4,0.41591]
[1725544807119,1.03939,2405.4,2404.4,4.1592]
[1725544807120,3.2078,2405.4,2404.4,4.1592]
[1725544807324,3.2078,2405.4,2404.7,3.84]
[1725544807526,1.03938,2405.4,2404.7,3.84]
[1725544807728,5.50847673,2407.3,2405.4,1.03938]
[1725544807912,3.93449597,2410.8,2408.8,3.2078]
[1725544808117,12.79266613,2415.2,2405.6,0.408]
[1725544808118,2.78161403,2411.3,2410.7,10.8878]
[1725544808312,4.81299411,2411.5,2411.1,3.2078]
[1725544808513,24.42302156,2411.2,2410.2,0.46856194]
[1725544808723,3.2078,2412.1,2410.8,3.2078]
[1725544808724,1.86355253,2410.9,2410.8,3.2078]
[1725544808925,3.2078,2411.4,2410.2,3.2078]
[1725544809123,4.42099758,2411.1,2410.3,3.2078]
[1725544809321,3.2078,2410.7,2410.0,3.2078]
[1725544809519,3.2078,2410.7,2410.1,3.2078]
[1725544809822,19.23877409,2410.7,2410.4,7.0478]
[1725544810027,2.0133,2411.6,2410.6,3.98]
[1725544810325,0.0097,2412.0,2411.5,7.1878]
[1725544810326,19.23877409,2412.0,2411.5,7.1878]
[1725544810514,1.03543,2414.6,2411.9,3.2078]
[1725544810515,3.2078,2413.1,2411.9,3.2078]
[1725544810822,3.2078,2413.1,2410.8,3.98]
[1725544810823,3.2078,2412.4,2411.4,3.2078]
[1725544811015,3.2078,2412.6,2412.3,0.006226]
[1725544811217,3.2078,2412.6,2411.6,3.2078]
[1725544811524,3.2078,2412.3,2411.6,7.1878]
[1725544811838,3.2078,2412.3,2410.6,8.93836692]
[1725544811839,16.03097409,2412.6,2412.1,3.98]
[1725544812020,16.03097409,2412.6,2412.5,3.2078]
[1725544812220,0.00618155,2412.6,2412.5,7.60232]
[1725544812417,3.2078,2413.9,2412.5,11.3326]
[1725544812618,16.03097409,2413.9,2413.8,3.2078]
[1725544812923,20.17337409,2413.9,2413.2,3.2078]
[1725544813125,16.03097409,2413.9,2413.2,3.2078]
[1725544813327,16.03097409,2413.9,2412.3,3.98]
[1725544813328,4.54799552,2413.8,2413.3,0.006226]
[1725544813528,4.54799552,2413.8,2413.3,3.214026]
[1725544813720,12.82317409,2413.8,2413.5,3.2078]
[1725544813917,3.2078,2414.2,2413.5,3.2078]
[1725544814124,12.82317409,2415.7,2414.1,3.98]
[1725544814422,12.82317409,2415.7,2413.3,0.006226]
[1725544814423,12.82317409,2415.7,2415.1,3.2078]
[1725544814617,3.98,2415.2,2414.2,14.75268468]
[1725544814817,7.1878,2414.4,2413.2,3.2078]
[1725544815016,7.1878,2414.4,2412.4,0.4144]
[1725544815017,3.2078,2413.4,2412.0,3.2078]
[1725544815212,3.2078,2413.4,2411.5,3.98]
[1725544815213,3.2078,2412.8,2412.2,3.2078]
[1725544815417,0.41439,2413.3,2412.2,3.2078]
[1725544815617,15.55062716,2413.4,2411.4,3.2078]
[1725544815618,3.2078,2412.9,2411.4,3.2078]
[1725544815825,3.2078,2413.2,2412.3,3.2078]
[1725544816025,0.0061679,2412.4,2412.3,3.2078]
[1725544816223,3.2078,2413.8,2412.4,5.36773512]
[1725544816533,3.2078,2412.9,2412.4,3.2078]
[1725544816825,3.2078,2412.6,2411.4,3.2078]
[1725544817012,12.34282716,2412.9,2412.1,3.2078]
[1725544817216,12.34282716,2412.9,2412.4,3.2078]
[1725544817723,16.48762716,2412.9,2412.3,0.0062126]
[1725544817926,0.41468,2411.6,2410.4,3.2078]
[1725544818122,3.98,2412.6,2407.5,2.07692]
[1725544818123,3.2078,2411.0,2410.0,3.2078]
[1725544818322,3.2078,2411.4,2410.7,3.2078]
[1725544818515,3.2078,2411.1,2410.1,11.9834947]
[1725544818722,3.2078,2411.1,2410.7,3.2078]
[1725544819021,3.2078,2411.0,2410.2,3.2078]
[1725544819225,3.2078,2411.0,2409.3,0.4152]
[1725544819226,3.2078,2410.7,2409.3,0.4152]
[1725544819416,4.148,2411.0,2410.3,8.79192672]
[1725544819417,12.34282716,2411.0,2410.3,8.79192672]
[1725544819728,0.0062126,2411.1,2410.9,3.2078]
[1725544819917,3.2078,2411.0,2410.4,5.3759735]
[1725544820113,3.2078,2410.7,2409.5,0.41504]
[1725544820316,15.96542716,2411.0,2409.5,0.41504]
[1725544820517,15.55062716,2411.0,2410.0,3.2078]
[1725544820727,3.2078,2410.7,2409.9,0.0062126]
[1725544820929,3.2078,2410.9,2409.9,0.0062126]
[1725544821122,3.2078,2410.0,2409.9,0.0062126]
[1725544821617,19.70022716,2410.0,2408.7,3.623]
[1725544821927,3.2078,2409.7,2408.8,8.69913357]
[1725544822127,16.32282716,2410.0,2408.8,8.69913357]
[1725544822128,3.62294,2408.9,2408.8,8.69913357]
[1725544822320,3.62294,2408.9,2406.7,3.98]
[1725544822321,0.41525,2408.3,2406.9,0.41547]
[1725544822515,0.41525,2408.3,2406.7,0.4152]
[1725544822516,3.2078,2407.7,2406.7,3.623]
[1725544822720,3.2078,2407.7,2406.8,12.8728905]
[1725544822934,3.2078,2407.7,2407.4,3.98]
[1725544823233,3.2078,2409.0,2407.4,9.98]
[1725544823430,3.2078,2409.0,2408.2,3.2078]
[1725544823631,0.41516,2408.9,2407.9,3.2078]
[1725544823828,0.00622562,2408.8,2407.9,3.98]
[1725544824019,0.00622562,2408.8,2408.4,3.2078]
[1725544824226,0.00622562,2408.8,2408.2,0.00622562]
[1725544824424,0.00622562,2408.8,2408.5,11.71415153]
[1725544824625,0.00622562,2408.8,2408.3,8.50635153]
[1725544824831,0.00622562,2408.8,2408.2,0.00622562]
[1725544824832,3.2078,2408.4,2408.2,0.00622562]
[1725544825029,3.2078,2408.7,2408.2,0.00622562]
[1725544825425,3.2078,2408.7,2408.2,3.21402562]
[1725544825626,0.00622562,2408.8,2408.3,0.41524]
[1725544825830,0.00622562,2408.8,2408.7,3.2078]
[1725544826032,0.00622562,2408.8,2408.2,0.00622562]
[1725544826223,3.2078,2408.7,2408.2,0.00622562]
[1725544826425,0.00622562,2408.8,2408.3,4.152]
[1725544826629,0.00622562,2408.8,2408.3,8.91496838]
[1725544826836,0.00622562,2408.8,2408.2,0.00622562]
[1725544827530,3.2078,2409.9,2409.0,0.41512]
[1725544827720,3.2078,2409.9,2409.3,3.2078]
[1725544827927,3.2078,2410.9,2409.6,7.1878]
[1725544828126,3.2078,2410.6,2409.5,3.62283]
[1725544828331,3.2078,2410.6,2409.1,9.81473259]
[1725544828332,3.2078,2410.5,2410.0,0.41495]
[1725544828537,3.2078,2410.5,2410.0,0.00622562]
[1725544828538,0.00622562,2410.5,2410.0,0.00622562]
[1725544828829,0.00622562,2410.5,2410.3,3.2078]
[1725544829034,0.00622562,2410.5,2410.4,0.41488]
[1725544829228,0.00622562,2410.5,2410.4,4.56368]
[1725544829540,3.2078,2411.3,2410.4,4.1488]
[1725544829726,1.9918,2412.9,2410.3,3.2078]
[1725544829727,3.2078,2411.0,2410.3,3.2078]
[1725544830031,0.81883958,2411.2,2410.8,0.4148]
[1725544830222,0.41465,2411.8,2410.9,3.2078]
[1725544830223,3.2078,2411.8,2410.9,3.2078]
[1725544830423,0.00622562,2411.6,2411.5,3.2078]
[1725544830735,0.00622562,2411.6,2411.5,0.4147]
[1725544831033,0.41451,2412.6,2411.3,0.00622562]
[1725544831034,3.6224,2412.1,2411.3,0.00622562]
[1725544831238,0.41452,2412.6,2411.7,0.41466]
[1725544831433,3.2078,2413.6,2412.3,3.2078]
[1725544831732,4.39668789,2413.5,2412.5,3.2078]
[1725544831925,4.39668789,2413.5,2412.7,0.00622562]
[1725544832125,0.41445,2413.0,2412.7,0.00622562]
[1725544832335,0.41444,2413.0,2412.7,0.00622562]
[1725544832530,0.41447,2412.8,2412.7,0.00622562]
[1725544832723,13.76707,2412.8,2412.7,0.00622562]
[1725544832941,1.03632,2412.5,2411.2,3.2078]
[1725544833231,1.03632,2412.5,2410.4,0.4152]
[1725544833232,3.2078,2412.1,2410.9,3.2078]
[1725544833729,0.41468,2411.7,2410.9,3.2078]
[1725544833932,3.2078,2412.1,2411.3,3.2078]
[1725544834133,0.00622562,2411.5,2411.2,3.2078]
[1725544834340,3.2078,2412.3,2411.2,3.2078]
[1725544834528,3.2078,2412.0,2411.1,0.00622562]
[1725544834733,3.2078,2412.0,2411.7,0.41465]
[1725544834928,3.2078,2412.0,2411.2,3.2078]
[1725544834929,3.2078,2412.4,2411.4,3.2078]
[1725544835131,3.2078,2412.4,2411.6,0.41467]
[1725544835434,3.2078,2411.9,2411.1,0.00622562]
[1725544835828,0.41475,2411.2,2411.1,0.00622562]
[1725544836138,3.2078,2411.7,2410.4,3.2078]
[1725544836343,5.3,2412.1,2411.0,3.2078]
[1725544836542,3.2078,2412.0,2411.0,3.2078]
[1725544836833,3.2078,2411.9,2411.0,0.41477]
[1725544837037,3.2078,2411.9,2410.9,3.2078]
[1725544837237,3.62248,2411.6,2411.2,0.00622562]
[1725544837427,3.2078,2411.6,2411.2,0.00622562]
[1725544837628,3.2078,2411.6,2406.8,1.08949012]
[1725544837629,0.41483,2410.8,2410.1,3.2078]
[1725544837835,0.41472,2411.4,2410.6,0.41485]
[1725544838035,3.21402562,2411.7,2410.1,3.98]
[1725544838036,3.2078,2411.3,2410.8,3.2078]
[1725544838233,0.00622562,2411.7,2409.8,0.41498]
[1725544838234,0.41486,2410.6,2409.8,0.41498]
[1725544838538,3.2078,2411.1,2410.0,3.2078]
[1725544838740,0.00622562,2410.4,2410.0,0.00622562]
[1725544838934,0.00622562,2410.4,2410.0,0.42116562]
[1725544839140,0.00622562,2410.4,2410.0,3.21402562]
[1725544839335,1.9847,2413.0,2410.3,3.2078]
[1725544839336,3.2078,2411.5,2410.3,3.2078]
[1725544839640,3.2078,2411.5,2410.0,3.98622562]
[1725544839641,0.41476,2411.2,2410.6,3.2078]
[1725544839832,0.41476,2411.2,2410.1,3.2078]
[1725544839833,3.2078,2411.2,2410.1,3.2078]
[1725544840035,8.8994412,2411.4,2410.1,0.41492]
[1725544840234,3.2078,2411.4,2410.3,3.2078]
[1725544840644,3.21402562,2411.1,2410.1,3.2078]
[1725544840841,0.41483,2410.7,2410.0,3.21402562]
[1725544841141,3.21402562,2411.1,2410.0,3.21402562]
[1725544841142,0.00622562,2411.1,2410.6,3.2078]
[1725544841450,0.00622562,2411.1,2410.1,3.98]
[1725544841451,3.2078,2412.0,2411.3,0.41472]
[1725544841637,3.2078,2411.9,2410.9,3.2078]
[1725544841843,3.2078,2411.9,2411.3,0.41471]
[1725544842038,3.2078,2412.3,2411.2,3.2078]
[1725544842238,3.2078,2412.3,2410.5,3.98]
[1725544842239,3.2078,2412.0,2411.4,3.2078]
[1725544842442,3.2078,2412.3,2411.0,3.2078]
[1725544842640,0.41468,2411.6,2411.5,0.00622562]
[1725544842845,3.2078,2412.0,2411.5,0.00622562]
[1725544843041,0.41458,2412.2,2411.5,0.00622562]
[1725544843345,1.9944,2412.9,2411.5,0.00622562]
[1725544843346,0.41467,2411.7,2411.5,0.00622562]
[1725544843642,3.2078,2412.0,2411.5,0.00622562]
[1725544844045,1.9944,2412.9,2411.5,0.00622562]
[1725544844046,3.2078,2412.3,2411.5,0.00622562]
[1725544844235,3.2078,2412.7,2411.5,0.00622562]
[1725544844440,3.2078,2412.4,2411.5,0.00622562]
[1725544844643,3.2078,2412.4,2411.6,0.41467]
[1725544844948,3.2078,2412.4,2411.5,0.00622562]
[1725544844949,0.41468,2411.6,2411.5,0.00622562]
[1725544845147,2.48808,2411.6,2411.5,5.62e-06]
[1725544845348,9.0310218,2411.6,2411.5,5.62e-06]
[1725544845550,11.59778,2411.6,2411.5,5.62e-06]
[1725544845843,0.41493,2410.2,2409.6,0.41501]
[1725544846043,1.03693,2411.1,2409.8,3.2078]
[1725544846243,3.2078,2410.9,2410.1,3.2078]
[1725544846445,1.9226,2411.5,2410.1,3.2078]
[1725544846446,0.41484,2410.7,2410.1,3.2078]
[1725544846747,0.41484,2410.7,2409.7,0.41499]
[1725544846748,3.2078,2410.5,2409.7,0.41499]
[1725544846942,0.00622562,2410.3,2409.9,0.00622562]
[1725544847536,1.03731,2410.2,2409.9,0.00622562]
[1725544847739,1.03731,2410.2,2409.1,0.41511]
[1725544847740,0.41501,2409.7,2409.1,0.41511]
[1725544847940,0.41501,2409.7,2408.8,3.2078]
[1725544848143,0.41501,2409.7,2408.5,1.03803]
[1725544848144,3.2078,2409.5,2408.5,3.2078]
[1725544848334,3.62285,2409.5,2408.8,3.2078]
[1725544848645,0.41507,2409.3,2408.9,0.00622562]
[1725544848851,1.03747,2409.9,2408.9,0.00622562]
[1725544849146,0.41505,2409.5,2408.9,0.00622562]
[1725544849361,3.2078,2409.9,2408.9,0.00622562]
[1725544849362,4.5247883,2410.1,2408.9,0.00622562]
[1725544849546,0.00622562,2410.3,2409.4,3.2078]
[1725544849937,0.00622562,2410.3,2409.4,0.41505]
[1725544849938,0.41494,2410.1,2409.4,0.41505]
[1725544850139,0.00622562,2410.3,2409.4,3.2078]
[1725544850336,3.2078,2410.2,2409.2,3.2078]
[1725544850539,0.41498,2409.9,2409.2,3.62289]
[1725544850746,3.2078,2410.2,2409.3,3.98]
[1725544850952,0.00622562,2410.3,2409.9,3.2078]
[1725544851339,0.00622562,2410.3,2410.2,3.62272]
[1725544851638,3.2078,2411.3,2410.2,7.3566]
[1725544851840,3.2078,2411.3,2410.6,0.41484]
[1725544852065,3.2078,2411.6,2411.0,3.2078]
[1725544852345,3.2078,2411.6,2410.5,3.98]
[1725544852346,1.03649,2412.1,2410.7,11.51505121]
[1725544852539,0.41467,2411.7,2411.0,3.62257]
[1725544852738,3.2078,2412.2,2411.1,0.00622562]
[1725544852739,0.00622562,2411.6,2411.1,0.00622562]
[1725544853140,0.42091562,2411.6,2411.1,0.00622562]
[1725544853339,0.4147,2411.5,2411.1,0.00622562]
[1725544853547,0.00622562,2411.6,2411.1,0.00622562]
[1725544853738,0.41474,2411.3,2411.1,0.00622562]
[1725544853941,0.00622562,2411.6,2411.1,0.00622562]
[1725544854140,0.00622562,2411.6,2411.5,0.4147]
[1725544854352,0.00622562,2411.6,2411.1,0.00622562]
[1725544855648,0.42091562,2411.6,2411.1,0.00622562]
[1725544855850,0.00622562,2411.6,2411.1,0.00622562]
[1725544856045,0.00622562,2411.6,2411.2,0.41475]
[1725544856251,0.00622562,2411.6,2411.1,0.00622562]
[1725544856449,0.41474,2411.3,2411.1,0.00622562]
[1725544856640,0.00622562,2411.6,2411.1,0.00622562]
[1725544856641,0.41475,2411.2,2411.1,0.00622562]
[1725544857041,4.56195,2411.2,2411.1,0.00622562]
[1725544857540,0.00622562,2411.6,2411.1,4.14720562]
[1725544857747,0.00622562,2411.6,2411.1,5.62e-06]
[1725544858141,4.11023,2412.8,2411.1,5.62e-06]
[1725544858142,3.2078,2413.6,2411.5,8.1878]
[1725544858445,3.2078,2413.1,2412.0,3.2078]
[1725544858645,1.0364,2412.3,2411.5,3.2078]
[1725544858850,1.0364,2412.3,2410.6,3.06272]
[1725544858851,0.41469,2411.6,2411.1,3.62255]
[1725544859146,0.4147,2411.5,2411.1,0.00622562]
[1725544859354,0.00622434,2411.6,2411.1,0.00622562]
[1725544859948,0.41471,2411.5,2411.1,0.00622562]
[1725544860153,0.00622434,2411.6,2411.1,0.00622562]
[1725544860356,0.4147,2411.5,2411.1,0.00622562]
[1725544860649,0.00622434,2411.6,2411.5,0.4147]
[1725544860850,3.2078,2412.6,2411.3,3.2078]
[1725544861051,6.18056,2412.9,2411.8,3.2078]
[1725544861251,1.9366,2412.9,2411.5,3.2078]
[1725544861451,3.2078,2413.5,2412.5,3.2078]
[1725544861751,3.2078,2413.5,2412.8,3.2078]
[1725544861945,6.5780835,2414.3,2413.4,3.2078]
[1725544861946,4.6313835,2414.3,2413.4,3.2078]
[1725544862145,4.6313835,2414.3,2412.8,0.00622562]
[1725544862146,1.9467,2415.3,2414.0,3.2078]
[1725544862347,1.9467,2415.3,2414.4,0.00621144]
[1725544862348,0.41406,2415.2,2414.4,0.00621144]
[1725544862652,0.41408,2415.1,2414.4,0.00621144]
[1725544862955,8.5574682,2415.6,2414.4,0.00621144]
[1725544863149,3.2078,2415.2,2414.4,0.00621144]
[1725544863347,0.41418,2414.5,2414.4,0.00621144]
[1725544863647,3.62198,2414.5,2414.4,1.44e-06]
[1725544863850,5.59124,2414.5,2414.4,1.44e-06]
[1725544864053,11.6929,2414.5,2414.4,1.44e-06]
[1725544864364,11.6929,2414.5,2413.2,3.2078]
[1725544864365,17.96859247,2414.5,2413.2,3.2078]
[1725544864541,1.03535,2414.8,2412.1,5.94559826]
[1725544864542,3.2078,2415.9,2414.2,3.2078]
[1725544864744,0.41412,2414.9,2414.1,3.2078]
[1725544864947,5.2164,2415.5,2414.2,3.2078]
[1725544864948,4.24296,2415.2,2414.2,3.2078]
[1725544865245,2.0086,2415.5,2413.9,3.2078]
[1725544865246,0.4142,2414.5,2413.9,3.2078]
[1725544865443,3.21396418,2414.9,2414.0,0.00621144]
[1725544865849,3.21396418,2414.9,2414.0,1.44e-06]
[1725544865850,1.44988,2414.1,2414.0,1.44e-06]
[1725544866251,17.67074329,2414.1,2412.4,3.2078]
[1725544866456,1.03602,2413.2,2412.2,3.2078]
[1725544866650,0.4145,2412.7,2412.2,3.2078]
[1725544866851,3.2078,2413.3,2412.2,3.2078]
[1725544867048,3.2078,2413.0,2411.6,3.2078]
[1725544867248,0.00621144,2412.5,2411.3,3.2078]
[1725544867461,0.00621144,2412.5,2411.7,0.00621144]
[1725544867767,1.03636,2412.4,2411.7,0.00621144]
[1725544867947,0.00621144,2412.5,2411.9,0.41462]
[1725544868253,0.00621144,2412.5,2411.7,0.00621144]
[1725544868454,0.00621144,2412.5,2411.9,3.2078]
[1725544868656,0.00621144,2412.5,2411.7,0.00621144]
[1725544868657,0.41464,2411.9,2411.7,0.00621144]
[1725544868874,0.41464,2411.8,2411.7,0.00621144]
[1725544869049,0.41464,2411.8,2410.7,3.2078]
[1725544869050,0.41476,2411.1,2410.7,3.2078]
[1725544869249,1.03679,2411.4,2410.0,3.2078]
[1725544869457,4.24463,2411.3,2410.3,0.4149]
[1725544869756,0.41491,2410.3,2409.9,3.2078]
[1725544869957,0.41485,2410.6,2409.9,3.2078]
[1725544870166,0.00621144,2410.3,2409.9,3.21401144]
[1725544870460,0.41495,2410.1,2409.9,0.00621144]
[1725544870657,0.41495,2410.0,2409.9,0.00621144]
[1725544870850,0.41495,2410.0,2408.8,0.4152]
[1725544870851,1.03738,2410.1,2409.0,3.2078]
[1725544871053,3.2078,2409.8,2408.7,3.2078]
[1725544871253,3.2078,2409.3,2408.3,3.62304]
[1725544871552,0.41515,2408.9,2408.0,3.62309]
[1725544871752,3.2078,2409.0,2408.3,3.2078]
[1725544871953,0.41503,2409.6,2408.6,3.2078]
[1725544872160,3.2078,2409.7,2409.3,3.2078]
[1725544872353,3.62271,2410.3,2409.3,7.3582]
[1725544872554,3.2078,2410.3,2409.6,3.2078]
[1725544872763,3.2078,2410.3,2408.7,0.30032573]
[1725544872764,3.2078,2410.9,2409.4,3.2078]
[1725544872962,3.2078,2410.3,2409.1,3.2078]
[1725544873149,0.00622497,2410.4,2409.9,0.00622497]
[1725544873352,0.41492,2410.2,2409.9,0.00622497]
[1725544873559,3.2078,2410.3,2409.9,0.00622497]
[1725544873758,0.00622497,2410.4,2409.9,0.00622497]
[1725544874357,3.21402497,2410.4,2409.9,0.00622497]
[1725544874553,0.00622497,2410.4,2409.9,4.15502497]
[1725544874752,0.00622497,2410.4,2409.9,3.21402497]
[1725544875066,0.00622497,2410.4,2409.9,0.00622497]
[1725544875255,0.41492,2410.2,2409.9,0.00622497]
[1725544875564,0.41494,2410.1,2409.9,0.00622497]
[1725544875754,0.41495,2410.0,2409.9,0.00622497]
[1725544875953,1.03727,2410.3,2409.2,3.2078]
[1725544876155,3.2078,2409.8,2408.9,3.2078]
[1725544876458,0.41501,2409.7,2408.6,3.2078]
[1725544876659,0.41512,2409.1,2408.6,3.2078]
[1725544876962,0.41512,2409.1,2408.6,0.00622497]
[1725544876963,0.41516,2408.9,2408.6,0.00622497]
[1725544877156,0.00622497,2409.1,2408.6,0.00622497]
[1725544877468,0.42134497,2409.1,2408.6,0.00622497]
[1725544877661,0.00622497,2409.1,2408.6,0.00622497]
[1725544877853,3.2078,2409.9,2408.9,3.2078]
[1725544878161,0.41494,2410.1,2409.5,3.2078]
[1725544878362,0.41502,2409.7,2409.0,0.41512]
[1725544878560,0.41495,2410.1,2409.5,3.62284]
[1725544878860,5.129,2410.2,2409.2,3.2078]
[1725544878861,0.00622497,2410.0,2409.2,3.2078]
[1725544879167,3.21402497,2410.0,2409.3,3.2078]